Workbook

Sheet Pivot
A1: FagBladet, Glaspuster Peter
A2: Firma | B2: (Multiple Items)
A4: Row Labels | B4: Sum of Beløb
A5: Genius EasyMouse Plus | B5: 2880
A6: HP Business Inkjet 1100d | B6: 11970
A7: Logitech Cordless Click! | B7: 5040
A8: Nokia 15" TFT | B8: 15540
A9: PC I 3.0 GHz | B9: 14988
A10: Grand Total | B10: 50418

Sheet Salg
A1: Fakturanr | B1: Dato | C1: Kundenr. | D1: Firma | E1: Sælger | F1: Gruppe | G1: Model | H1: Stk. pris | I1: Antal | J1: Beløb
A2: 1452 | B2: 2004-03-28 | C2: 40 | D2: Tømrer Jens Jensen | E2: Dortea Jensen | F2: Printer | G2: HP Business Inkjet 1100d | H2: 1995 | I2: 3 | J2: =Salgstabel[[#This Row],[Antal]]*Salgstabel[[#This Row],[Stk. pris]] -> 5985
A3: 1450 | B3: 2004-03-28 | C3: 8 | D3: Revisorhuset | E3: Christian Andersen | F3: Printer | G3: HP Color LaserJet 3700 | H3: 8995 | I3: 8 | J3: =Salgstabel[[#This Row],[Antal]]*Salgstabel[[#This Row],[Stk. pris]] -> 71960
A4: 1448 | B4: 2004-03-21 | C4: 26 | D4: Fast Print ApS | E4: Christian Andersen | F4: PC | G4: PC I 3.0 GHz | H4: 4996 | I4: 1 | J4: =Salgstabel[[#This Row],[Antal]]*Salgstabel[[#This Row],[Stk. pris]] -> 4996
A5: 1446 | B5: 2004-03-21 | C5: 28 | D5: Forfatter Skrible Skrable | E5: Pia Petersen | F5: Skærm | G5: Nokia 15" TFT | H5: 1295 | I5: 5 | J5: =Salgstabel[[#This Row],[Antal]]*Salgstabel[[#This Row],[Stk. pris]] -> 6475
A6: 1444 | B6: 2004-03-18 | C6: 36 | D6: ExpoTjek ApS | E6: Dortea Jensen | F6: PC | G6: PCII 3.50 GHz | H6: 6396 | I6: 5 | J6: =Salgstabel[[#This Row],[Antal]]*Salgstabel[[#This Row],[Stk. pris]] -> 31980
A7: 1442 | B7: 2004-03-17 | C7: 10 | D7: Slagteriet | E7: Pia Petersen | F7: Mus | G7: Logitech Cordless Click! | H7: 280 | I7: 6 | J7: =Salgstabel[[#This Row],[Antal]]*Salgstabel[[#This Row],[Stk. pris]] -> 1680
A8: 1440 | B8: 2004-03-16 | C8: 8 | D8: Revisorhuset | E8: Svend Svensen | F8: PC | G8: PC III 4.0 GHz | H8: 8496 | I8: 6 | J8: =Salgstabel[[#This Row],[Antal]]*Salgstabel[[#This Row],[Stk. pris]] -> 50976
A9: 1438 | B9: 2004-03-15 | C9: 36 | D9: ExpoTjek ApS | E9: Dortea Jensen | F9: Skærm | G9: Nokia 17" TFT | H9: 2495 | I9: 6 | J9: =Salgstabel[[#This Row],[Antal]]*Salgstabel[[#This Row],[Stk. pris]] -> 14970
A10: 1436 | B10: 2004-03-15 | C10: 4 | D10: Glaspuster Peter | E10: Pia Petersen | F10: Printer | G10: HP Business Inkjet 1100d | H10: 1995 | I10: 2 | J10: =Salgstabel[[#This Row],[Antal]]*Salgstabel[[#This Row],[Stk. pris]] -> 3990
A11: 1434 | B11: 2004-03-15 | C11: 6 | D11: Peters Data | E11: Pia Petersen | F11: PC | G11: PC Lux 4.50 GHz | H11: 11996 | I11: 10 | J11: =Salgstabel[[#This Row],[Antal]]*Salgstabel[[#This Row],[Stk. pris]] -> 119960
A12: 1434 | B12: 2004-03-15 | C12: 6 | D12: Peters Data | E12: Pia Petersen | F12: PC | G12: PC I 3.0 GHz | H12: 4996 | I12: 5 | J12: =Salgstabel[[#This Row],[Antal]]*Salgstabel[[#This Row],[Stk. pris]] -> 24980
A13: 1434 | B13: 2004-03-15 | C13: 6 | D13: Peters Data | E13: Pia Petersen | F13: Mus | G13: Lenco Typhoon | H13: 296 | I13: 10 | J13: =Salgstabel[[#This Row],[Antal]]*Salgstabel[[#This Row],[Stk. pris]] -> 2960
A14: 1434 | B14: 2004-03-15 | C14: 6 | D14: Peters Data | E14: Pia Petersen | F14: Printer | G14: HP Color LaserJet 3700 | H14: 8995 | I14: 1 | J14: =Salgstabel[[#This Row],[Antal]]*Salgstabel[[#This Row],[Stk. pris]] -> 8995
A15: 1432 | B15: 2004-03-13 | C15: 22 | D15: Spedition Vest | E15: Christian Andersen | F15: Printer | G15: Canon i 70 | H15: 1720 | I15: 2 | J15: =Salgstabel[[#This Row],[Antal]]*Salgstabel[[#This Row],[Stk. pris]] -> 3440
A16: 1430 | B16: 2004-03-12 | C16: 34 | D16: FagBladet | E16: Dortea Jensen | F16: Mus | G16: Genius EasyMouse Plus | H16: 48 | I16: 20 | J16: =Salgstabel[[#This Row],[Antal]]*Salgstabel[[#This Row],[Stk. pris]] -> 960
A17: 1428 | B17: 2004-03-12 | C17: 24 | D17: Vandrehjemmet sneglen | E17: Christian Andersen | F17: PC | G17: PCII 3.50 GHz | H17: 6396 | I17: 20 | J17: =Salgstabel[[#This Row],[Antal]]*Salgstabel[[#This Row],[Stk. pris]] -> 127920
A18: 1426 | B18: 2004-03-11 | C18: 26 | D18: Fast Print ApS | E18: Svend Svensen | F18: Mus | G18: Logitech Cordless Click! | H18: 280 | I18: 1 | J18: =Salgstabel[[#This Row],[Antal]]*Salgstabel[[#This Row],[Stk. pris]] -> 280
A19: 1424 | B19: 2004-03-09 | C19: 24 | D19: Vandrehjemmet sneglen | E19: Svend Svensen | F19: PC | G19: PC Lux 4.50 GHz | H19: 11996 | I19: 10 | J19: =Salgstabel[[#This Row],[Antal]]*Salgstabel[[#This Row],[Stk. pris]] -> 119960
A20: 1424 | B20: 2004-03-09 | C20: 24 | D20: Vandrehjemmet sneglen | E20: Svend Svensen | F20: Mus | G20: Lenco Typhoon | H20: 296 | I20: 6 | J20: =Salgstabel[[#This Row],[Antal]]*Salgstabel[[#This Row],[Stk. pris]] -> 1776
A21: 1424 | B21: 2004-03-09 | C21: 24 | D21: Vandrehjemmet sneglen | E21: Svend Svensen | F21: Mus | G21: Lenco Typhoon | H21: 296 | I21: 10 | J21: =Salgstabel[[#This Row],[Antal]]*Salgstabel[[#This Row],[Stk. pris]] -> 2960
A22: 1422 | B22: 2004-03-08 | C22: 22 | D22: Spedition Vest | E22: Dortea Jensen | F22: PC | G22: PC Lux 4.50 GHz | H22: 11996 | I22: 2 | J22: =Salgstabel[[#This Row],[Antal]]*Salgstabel[[#This Row],[Stk. pris]] -> 23992
A23: 1420 | B23: 2004-03-07 | C23: 20 | D23: Amstsygehuset | E23: Dortea Jensen | F23: Printer | G23: Canon i 70 | H23: 1720 | I23: 2 | J23: =Salgstabel[[#This Row],[Antal]]*Salgstabel[[#This Row],[Stk. pris]] -> 3440
A24: 1418 | B24: 2004-03-07 | C24: 8 | D24: Revisorhuset | E24: Christian Andersen | F24: Mus | G24: Genius EasyMouse Plus | H24: 48 | I24: 7 | J24: =Salgstabel[[#This Row],[Antal]]*Salgstabel[[#This Row],[Stk. pris]] -> 336
A25: 1416 | B25: 2004-03-06 | C25: 18 | D25: Amtsgården | E25: Christian Andersen | F25: PC | G25: PCII 3.50 GHz | H25: 6396 | I25: 10 | J25: =Salgstabel[[#This Row],[Antal]]*Salgstabel[[#This Row],[Stk. pris]] -> 63960
A26: 1414 | B26: 2004-03-06 | C26: 4 | D26: Glaspuster Peter | E26: Pia Petersen | F26: Mus | G26: Logitech Cordless Click! | H26: 280 | I26: 6 | J26: =Salgstabel[[#This Row],[Antal]]*Salgstabel[[#This Row],[Stk. pris]] -> 1680
A27: 1412 | B27: 2004-03-05 | C27: 30 | D27: KLPO A/S | E27: Svend Svensen | F27: PC | G27: PC III 4.0 GHz | H27: 8496 | I27: 4 | J27: =Salgstabel[[#This Row],[Antal]]*Salgstabel[[#This Row],[Stk. pris]] -> 33984
A28: 1412 | B28: 2004-03-05 | C28: 30 | D28: KLPO A/S | E28: Svend Svensen | F28: Skærm | G28: Nokia 17" TFT | H28: 2495 | I28: 25 | J28: =Salgstabel[[#This Row],[Antal]]*Salgstabel[[#This Row],[Stk. pris]] -> 62375
A29: 1410 | B29: 2004-03-04 | C29: 24 | D29: Vandrehjemmet sneglen | E29: Christian Andersen | F29: Printer | G29: HP Business Inkjet 1100d | H29: 1995 | I29: 8 | J29: =Salgstabel[[#This Row],[Antal]]*Salgstabel[[#This Row],[Stk. pris]] -> 15960
A30: 1408 | B30: 2004-03-04 | C30: 12 | D30: Beregner J Jonsen | E30: Christian Andersen | F30: Printer | G30: HP Color LaserJet 3700 | H30: 8995 | I30: 2 | J30: =Salgstabel[[#This Row],[Antal]]*Salgstabel[[#This Row],[Stk. pris]] -> 17990
A31: 1406 | B31: 2004-03-04 | C31: 4 | D31: Glaspuster Peter | E31: Pia Petersen | F31: PC | G31: PC I 3.0 GHz | H31: 4996 | I31: 1 | J31: =Salgstabel[[#This Row],[Antal]]*Salgstabel[[#This Row],[Stk. pris]] -> 4996
A32: 1406 | B32: 2004-03-04 | C32: 4 | D32: Glaspuster Peter | E32: Pia Petersen | F32: Skærm | G32: Nokia 15" TFT | H32: 1295 | I32: 4 | J32: =Salgstabel[[#This Row],[Antal]]*Salgstabel[[#This Row],[Stk. pris]] -> 5180
A33: 1404 | B33: 2004-03-04 | C33: 14 | D33: Købmands-Centralen | E33: Svend Svensen | F33: Printer | G33: HP Color LaserJet 3700 | H33: 8995 | I33: 3 | J33: =Salgstabel[[#This Row],[Antal]]*Salgstabel[[#This Row],[Stk. pris]] -> 26985
A34: 1402 | B34: 2004-03-04 | C34: 2 | D34: PN Byggeservice A/S | E34: Svend Svensen | F34: PC | G34: PC I 3.0 GHz | H34: 4996 | I34: 10 | J34: =Salgstabel[[#This Row],[Antal]]*Salgstabel[[#This Row],[Stk. pris]] -> 49960
A35: 1452 | B35: 2004-02-28 | C35: 40 | D35: Tømrer Jens Jensen | E35: Dortea Jensen | F35: Printer | G35: HP Business Inkjet 1100d | H35: 1995 | I35: 3 | J35: =Salgstabel[[#This Row],[Antal]]*Salgstabel[[#This Row],[Stk. pris]] -> 5985
A36: 1450 | B36: 2004-02-28 | C36: 8 | D36: Revisorhuset | E36: Christian Andersen | F36: Printer | G36: HP Color LaserJet 3700 | H36: 8995 | I36: 8 | J36: =Salgstabel[[#This Row],[Antal]]*Salgstabel[[#This Row],[Stk. pris]] -> 71960
A37: 1448 | B37: 2004-02-21 | C37: 26 | D37: Fast Print ApS | E37: Christian Andersen | F37: PC | G37: PC I 3.0 GHz | H37: 4996 | I37: 1 | J37: =Salgstabel[[#This Row],[Antal]]*Salgstabel[[#This Row],[Stk. pris]] -> 4996
A38: 1446 | B38: 2004-02-21 | C38: 28 | D38: Forfatter Skrible Skrable | E38: Pia Petersen | F38: Skærm | G38: Nokia 15" TFT | H38: 1295 | I38: 5 | J38: =Salgstabel[[#This Row],[Antal]]*Salgstabel[[#This Row],[Stk. pris]] -> 6475
A39: 1444 | B39: 2004-02-18 | C39: 36 | D39: ExpoTjek ApS | E39: Dortea Jensen | F39: PC | G39: PCII 3.50 GHz | H39: 6396 | I39: 5 | J39: =Salgstabel[[#This Row],[Antal]]*Salgstabel[[#This Row],[Stk. pris]] -> 31980
A40: 1442 | B40: 2004-02-17 | C40: 10 | D40: Slagteriet | E40: Pia Petersen | F40: Mus | G40: Logitech Cordless Click! | H40: 280 | I40: 6 | J40: =Salgstabel[[#This Row],[Antal]]*Salgstabel[[#This Row],[Stk. pris]] -> 1680
A41: 1440 | B41: 2004-02-16 | C41: 8 | D41: Revisorhuset | E41: Svend Svensen | F41: PC | G41: PC III 4.0 GHz | H41: 8496 | I41: 6 | J41: =Salgstabel[[#This Row],[Antal]]*Salgstabel[[#This Row],[Stk. pris]] -> 50976
A42: 1438 | B42: 2004-02-15 | C42: 36 | D42: ExpoTjek ApS | E42: Dortea Jensen | F42: Skærm | G42: Nokia 17" TFT | H42: 2495 | I42: 6 | J42: =Salgstabel[[#This Row],[Antal]]*Salgstabel[[#This Row],[Stk. pris]] -> 14970
A43: 1436 | B43: 2004-02-15 | C43: 4 | D43: Glaspuster Peter | E43: Pia Petersen | F43: Printer | G43: HP Business Inkjet 1100d | H43: 1995 | I43: 2 | J43: =Salgstabel[[#This Row],[Antal]]*Salgstabel[[#This Row],[Stk. pris]] -> 3990
A44: 1434 | B44: 2004-02-15 | C44: 6 | D44: Peters Data | E44: Pia Petersen | F44: PC | G44: PC Lux 4.50 GHz | H44: 11996 | I44: 10 | J44: =Salgstabel[[#This Row],[Antal]]*Salgstabel[[#This Row],[Stk. pris]] -> 119960
A45: 1434 | B45: 2004-02-15 | C45: 6 | D45: Peters Data | E45: Pia Petersen | F45: PC | G45: PC I 3.0 GHz | H45: 4996 | I45: 5 | J45: =Salgstabel[[#This Row],[Antal]]*Salgstabel[[#This Row],[Stk. pris]] -> 24980
A46: 1434 | B46: 2004-02-15 | C46: 6 | D46: Peters Data | E46: Pia Petersen | F46: Mus | G46: Lenco Typhoon | H46: 296 | I46: 10 | J46: =Salgstabel[[#This Row],[Antal]]*Salgstabel[[#This Row],[Stk. pris]] -> 2960
A47: 1434 | B47: 2004-02-15 | C47: 6 | D47: Peters Data | E47: Pia Petersen | F47: Printer | G47: HP Color LaserJet 3700 | H47: 8995 | I47: 1 | J47: =Salgstabel[[#This Row],[Antal]]*Salgstabel[[#This Row],[Stk. pris]] -> 8995
A48: 1432 | B48: 2004-02-13 | C48: 22 | D48: Spedition Vest | E48: Christian Andersen | F48: Printer | G48: Canon i 70 | H48: 1720 | I48: 2 | J48: =Salgstabel[[#This Row],[Antal]]*Salgstabel[[#This Row],[Stk. pris]] -> 3440
A49: 1430 | B49: 2004-02-12 | C49: 34 | D49: FagBladet | E49: Dortea Jensen | F49: Mus | G49: Genius EasyMouse Plus | H49: 48 | I49: 20 | J49: =Salgstabel[[#This Row],[Antal]]*Salgstabel[[#This Row],[Stk. pris]] -> 960
A50: 1428 | B50: 2004-02-12 | C50: 24 | D50: Vandrehjemmet sneglen | E50: Christian Andersen | F50: PC | G50: PCII 3.50 GHz | H50: 6396 | I50: 20 | J50: =Salgstabel[[#This Row],[Antal]]*Salgstabel[[#This Row],[Stk. pris]] -> 127920
A51: 1426 | B51: 2004-02-11 | C51: 26 | D51: Fast Print ApS | E51: Svend Svensen | F51: Mus | G51: Logitech Cordless Click! | H51: 280 | I51: 1 | J51: =Salgstabel[[#This Row],[Antal]]*Salgstabel[[#This Row],[Stk. pris]] -> 280
A52: 1424 | B52: 2004-02-09 | C52: 24 | D52: Vandrehjemmet sneglen | E52: Svend Svensen | F52: PC | G52: PC Lux 4.50 GHz | H52: 11996 | I52: 10 | J52: =Salgstabel[[#This Row],[Antal]]*Salgstabel[[#This Row],[Stk. pris]] -> 119960
A53: 1424 | B53: 2004-02-09 | C53: 24 | D53: Vandrehjemmet sneglen | E53: Svend Svensen | F53: Mus | G53: Lenco Typhoon | H53: 296 | I53: 6 | J53: =Salgstabel[[#This Row],[Antal]]*Salgstabel[[#This Row],[Stk. pris]] -> 1776
A54: 1424 | B54: 2004-02-09 | C54: 24 | D54: Vandrehjemmet sneglen | E54: Svend Svensen | F54: Mus | G54: Lenco Typhoon | H54: 296 | I54: 10 | J54: =Salgstabel[[#This Row],[Antal]]*Salgstabel[[#This Row],[Stk. pris]] -> 2960
A55: 1422 | B55: 2004-02-08 | C55: 22 | D55: Spedition Vest | E55: Dortea Jensen | F55: PC | G55: PC Lux 4.50 GHz | H55: 11996 | I55: 2 | J55: =Salgstabel[[#This Row],[Antal]]*Salgstabel[[#This Row],[Stk. pris]] -> 23992
A56: 1420 | B56: 2004-02-07 | C56: 20 | D56: Amstsygehuset | E56: Dortea Jensen | F56: Printer | G56: Canon i 70 | H56: 1720 | I56: 2 | J56: =Salgstabel[[#This Row],[Antal]]*Salgstabel[[#This Row],[Stk. pris]] -> 3440
A57: 1418 | B57: 2004-02-07 | C57: 8 | D57: Revisorhuset | E57: Christian Andersen | F57: Mus | G57: Genius EasyMouse Plus | H57: 48 | I57: 7 | J57: =Salgstabel[[#This Row],[Antal]]*Salgstabel[[#This Row],[Stk. pris]] -> 336
A58: 1416 | B58: 2004-02-06 | C58: 18 | D58: Amtsgården | E58: Christian Andersen | F58: PC | G58: PCII 3.50 GHz | H58: 6396 | I58: 10 | J58: =Salgstabel[[#This Row],[Antal]]*Salgstabel[[#This Row],[Stk. pris]] -> 63960
A59: 1414 | B59: 2004-02-06 | C59: 4 | D59: Glaspuster Peter | E59: Pia Petersen | F59: Mus | G59: Logitech Cordless Click! | H59: 280 | I59: 6 | J59: =Salgstabel[[#This Row],[Antal]]*Salgstabel[[#This Row],[Stk. pris]] -> 1680
A60: 1412 | B60: 2004-02-05 | C60: 30 | D60: KLPO A/S | E60: Svend Svensen | F60: PC | G60: PC III 4.0 GHz | H60: 8496 | I60: 4 | J60: =Salgstabel[[#This Row],[Antal]]*Salgstabel[[#This Row],[Stk. pris]] -> 33984
A61: 1412 | B61: 2004-02-05 | C61: 30 | D61: KLPO A/S | E61: Svend Svensen | F61: Skærm | G61: Nokia 17" TFT | H61: 2495 | I61: 25 | J61: =Salgstabel[[#This Row],[Antal]]*Salgstabel[[#This Row],[Stk. pris]] -> 62375
A62: 1410 | B62: 2004-02-04 | C62: 24 | D62: Vandrehjemmet sneglen | E62: Christian Andersen | F62: Printer | G62: HP Business Inkjet 1100d | H62: 1995 | I62: 8 | J62: =Salgstabel[[#This Row],[Antal]]*Salgstabel[[#This Row],[Stk. pris]] -> 15960
A63: 1408 | B63: 2004-02-04 | C63: 12 | D63: Beregner J Jonsen | E63: Christian Andersen | F63: Printer | G63: HP Color LaserJet 3700 | H63: 8995 | I63: 2 | J63: =Salgstabel[[#This Row],[Antal]]*Salgstabel[[#This Row],[Stk. pris]] -> 17990
A64: 1406 | B64: 2004-02-04 | C64: 4 | D64: Glaspuster Peter | E64: Pia Petersen | F64: PC | G64: PC I 3.0 GHz | H64: 4996 | I64: 1 | J64: =Salgstabel[[#This Row],[Antal]]*Salgstabel[[#This Row],[Stk. pris]] -> 4996
A65: 1406 | B65: 2004-02-04 | C65: 4 | D65: Glaspuster Peter | E65: Pia Petersen | F65: Skærm | G65: Nokia 15" TFT | H65: 1295 | I65: 4 | J65: =Salgstabel[[#This Row],[Antal]]*Salgstabel[[#This Row],[Stk. pris]] -> 5180
A66: 1404 | B66: 2004-02-04 | C66: 14 | D66: Købmands-Centralen | E66: Svend Svensen | F66: Printer | G66: HP Color LaserJet 3700 | H66: 8995 | I66: 3 | J66: =Salgstabel[[#This Row],[Antal]]*Salgstabel[[#This Row],[Stk. pris]] -> 26985
A67: 1402 | B67: 2004-02-04 | C67: 2 | D67: PN Byggeservice A/S | E67: Svend Svensen | F67: PC | G67: PC I 3.0 GHz | H67: 4996 | I67: 10 | J67: =Salgstabel[[#This Row],[Antal]]*Salgstabel[[#This Row],[Stk. pris]] -> 49960
A68: 1452 | B68: 2004-01-28 | C68: 40 | D68: Tømrer Jens Jensen | E68: Dortea Jensen | F68: Printer | G68: HP Business Inkjet 1100d | H68: 1995 | I68: 3 | J68: =Salgstabel[[#This Row],[Antal]]*Salgstabel[[#This Row],[Stk. pris]] -> 5985
A69: 1450 | B69: 2004-01-28 | C69: 8 | D69: Revisorhuset | E69: Christian Andersen | F69: Printer | G69: HP Color LaserJet 3700 | H69: 8995 | I69: 8 | J69: =Salgstabel[[#This Row],[Antal]]*Salgstabel[[#This Row],[Stk. pris]] -> 71960
A70: 1448 | B70: 2004-01-21 | C70: 26 | D70: Fast Print ApS | E70: Christian Andersen | F70: PC | G70: PC I 3.0 GHz | H70: 4996 | I70: 1 | J70: =Salgstabel[[#This Row],[Antal]]*Salgstabel[[#This Row],[Stk. pris]] -> 4996
A71: 1446 | B71: 2004-01-21 | C71: 28 | D71: Forfatter Skrible Skrable | E71: Pia Petersen | F71: Skærm | G71: Nokia 15" TFT | H71: 1295 | I71: 5 | J71: =Salgstabel[[#This Row],[Antal]]*Salgstabel[[#This Row],[Stk. pris]] -> 6475
A72: 1444 | B72: 2004-01-18 | C72: 36 | D72: ExpoTjek ApS | E72: Dortea Jensen | F72: PC | G72: PCII 3.50 GHz | H72: 6396 | I72: 5 | J72: =Salgstabel[[#This Row],[Antal]]*Salgstabel[[#This Row],[Stk. pris]] -> 31980
A73: 1442 | B73: 2004-01-17 | C73: 10 | D73: Slagteriet | E73: Pia Petersen | F73: Mus | G73: Logitech Cordless Click! | H73: 280 | I73: 6 | J73: =Salgstabel[[#This Row],[Antal]]*Salgstabel[[#This Row],[Stk. pris]] -> 1680
A74: 1440 | B74: 2004-01-16 | C74: 8 | D74: Revisorhuset | E74: Svend Svensen | F74: PC | G74: PC III 4.0 GHz | H74: 8496 | I74: 6 | J74: =Salgstabel[[#This Row],[Antal]]*Salgstabel[[#This Row],[Stk. pris]] -> 50976
A75: 1438 | B75: 2004-01-15 | C75: 36 | D75: ExpoTjek ApS | E75: Dortea Jensen | F75: Skærm | G75: Nokia 17" TFT | H75: 2495 | I75: 6 | J75: =Salgstabel[[#This Row],[Antal]]*Salgstabel[[#This Row],[Stk. pris]] -> 14970
A76: 1436 | B76: 2004-01-15 | C76: 4 | D76: Glaspuster Peter | E76: Pia Petersen | F76: Printer | G76: HP Business Inkjet 1100d | H76: 1995 | I76: 2 | J76: =Salgstabel[[#This Row],[Antal]]*Salgstabel[[#This Row],[Stk. pris]] -> 3990
A77: 1434 | B77: 2004-01-15 | C77: 6 | D77: Peters Data | E77: Pia Petersen | F77: PC | G77: PC Lux 4.50 GHz | H77: 11996 | I77: 10 | J77: =Salgstabel[[#This Row],[Antal]]*Salgstabel[[#This Row],[Stk. pris]] -> 119960
A78: 1434 | B78: 2004-01-15 | C78: 6 | D78: Peters Data | E78: Pia Petersen | F78: PC | G78: PC I 3.0 GHz | H78: 4996 | I78: 5 | J78: =Salgstabel[[#This Row],[Antal]]*Salgstabel[[#This Row],[Stk. pris]] -> 24980
A79: 1434 | B79: 2004-01-15 | C79: 6 | D79: Peters Data | E79: Pia Petersen | F79: Mus | G79: Lenco Typhoon | H79: 296 | I79: 10 | J79: =Salgstabel[[#This Row],[Antal]]*Salgstabel[[#This Row],[Stk. pris]] -> 2960
A80: 1434 | B80: 2004-01-15 | C80: 6 | D80: Peters Data | E80: Pia Petersen | F80: Printer | G80: HP Color LaserJet 3700 | H80: 8995 | I80: 1 | J80: =Salgstabel[[#This Row],[Antal]]*Salgstabel[[#This Row],[Stk. pris]] -> 8995
A81: 1432 | B81: 2004-01-13 | C81: 22 | D81: Spedition Vest | E81: Christian Andersen | F81: Printer | G81: Canon i 70 | H81: 1720 | I81: 2 | J81: =Salgstabel[[#This Row],[Antal]]*Salgstabel[[#This Row],[Stk. pris]] -> 3440
A82: 1430 | B82: 2004-01-12 | C82: 34 | D82: FagBladet | E82: Dortea Jensen | F82: Mus | G82: Genius EasyMouse Plus | H82: 48 | I82: 20 | J82: =Salgstabel[[#This Row],[Antal]]*Salgstabel[[#This Row],[Stk. pris]] -> 960
A83: 1428 | B83: 2004-01-12 | C83: 24 | D83: Vandrehjemmet sneglen | E83: Christian Andersen | F83: PC | G83: PCII 3.50 GHz | H83: 6396 | I83: 20 | J83: =Salgstabel[[#This Row],[Antal]]*Salgstabel[[#This Row],[Stk. pris]] -> 127920
A84: 1426 | B84: 2004-01-11 | C84: 26 | D84: Fast Print ApS | E84: Svend Svensen | F84: Mus | G84: Logitech Cordless Click! | H84: 280 | I84: 1 | J84: =Salgstabel[[#This Row],[Antal]]*Salgstabel[[#This Row],[Stk. pris]] -> 280
A85: 1424 | B85: 2004-01-09 | C85: 24 | D85: Vandrehjemmet sneglen | E85: Svend Svensen | F85: PC | G85: PC Lux 4.50 GHz | H85: 11996 | I85: 10 | J85: =Salgstabel[[#This Row],[Antal]]*Salgstabel[[#This Row],[Stk. pris]] -> 119960
A86: 1424 | B86: 2004-01-09 | C86: 24 | D86: Vandrehjemmet sneglen | E86: Svend Svensen | F86: Mus | G86: Lenco Typhoon | H86: 296 | I86: 6 | J86: =Salgstabel[[#This Row],[Antal]]*Salgstabel[[#This Row],[Stk. pris]] -> 1776
A87: 1424 | B87: 2004-01-09 | C87: 24 | D87: Vandrehjemmet sneglen | E87: Svend Svensen | F87: Mus | G87: Lenco Typhoon | H87: 296 | I87: 10 | J87: =Salgstabel[[#This Row],[Antal]]*Salgstabel[[#This Row],[Stk. pris]] -> 2960
A88: 1422 | B88: 2004-01-08 | C88: 22 | D88: Spedition Vest | E88: Dortea Jensen | F88: PC | G88: PC Lux 4.50 GHz | H88: 11996 | I88: 2 | J88: =Salgstabel[[#This Row],[Antal]]*Salgstabel[[#This Row],[Stk. pris]] -> 23992
A89: 1420 | B89: 2004-01-07 | C89: 20 | D89: Amstsygehuset | E89: Dortea Jensen | F89: Printer | G89: Canon i 70 | H89: 1720 | I89: 2 | J89: =Salgstabel[[#This Row],[Antal]]*Salgstabel[[#This Row],[Stk. pris]] -> 3440
A90: 1418 | B90: 2004-01-07 | C90: 8 | D90: Revisorhuset | E90: Christian Andersen | F90: Mus | G90: Genius EasyMouse Plus | H90: 48 | I90: 7 | J90: =Salgstabel[[#This Row],[Antal]]*Salgstabel[[#This Row],[Stk. pris]] -> 336
A91: 1416 | B91: 2004-01-06 | C91: 18 | D91: Amtsgården | E91: Christian Andersen | F91: PC | G91: PCII 3.50 GHz | H91: 6396 | I91: 10 | J91: =Salgstabel[[#This Row],[Antal]]*Salgstabel[[#This Row],[Stk. pris]] -> 63960
A92: 1414 | B92: 2004-01-06 | C92: 4 | D92: Glaspuster Peter | E92: Pia Petersen | F92: Mus | G92: Logitech Cordless Click! | H92: 280 | I92: 6 | J92: =Salgstabel[[#This Row],[Antal]]*Salgstabel[[#This Row],[Stk. pris]] -> 1680
A93: 1412 | B93: 2004-01-05 | C93: 30 | D93: KLPO A/S | E93: Svend Svensen | F93: PC | G93: PC III 4.0 GHz | H93: 8496 | I93: 4 | J93: =Salgstabel[[#This Row],[Antal]]*Salgstabel[[#This Row],[Stk. pris]] -> 33984
A94: 1412 | B94: 2004-01-05 | C94: 30 | D94: KLPO A/S | E94: Svend Svensen | F94: Skærm | G94: Nokia 17" TFT | H94: 2495 | I94: 25 | J94: =Salgstabel[[#This Row],[Antal]]*Salgstabel[[#This Row],[Stk. pris]] -> 62375
A95: 1410 | B95: 2004-01-04 | C95: 24 | D95: Vandrehjemmet sneglen | E95: Christian Andersen | F95: Printer | G95: HP Business Inkjet 1100d | H95: 1995 | I95: 8 | J95: =Salgstabel[[#This Row],[Antal]]*Salgstabel[[#This Row],[Stk. pris]] -> 15960
A96: 1408 | B96: 2004-01-04 | C96: 12 | D96: Beregner J Jonsen | E96: Christian Andersen | F96: Printer | G96: HP Color LaserJet 3700 | H96: 8995 | I96: 2 | J96: =Salgstabel[[#This Row],[Antal]]*Salgstabel[[#This Row],[Stk. pris]] -> 17990
A97: 1406 | B97: 2004-01-04 | C97: 4 | D97: Glaspuster Peter | E97: Pia Petersen | F97: PC | G97: PC I 3.0 GHz | H97: 4996 | I97: 1 | J97: =Salgstabel[[#This Row],[Antal]]*Salgstabel[[#This Row],[Stk. pris]] -> 4996
A98: 1406 | B98: 2004-01-04 | C98: 4 | D98: Glaspuster Peter | E98: Pia Petersen | F98: Skærm | G98: Nokia 15" TFT | H98: 1295 | I98: 4 | J98: =Salgstabel[[#This Row],[Antal]]*Salgstabel[[#This Row],[Stk. pris]] -> 5180
A99: 1404 | B99: 2004-01-04 | C99: 14 | D99: Købmands-Centralen | E99: Svend Svensen | F99: Printer | G99: HP Color LaserJet 3700 | H99: 8995 | I99: 3 | J99: =Salgstabel[[#This Row],[Antal]]*Salgstabel[[#This Row],[Stk. pris]] -> 26985
A100: 1402 | B100: 2004-01-04 | C100: 2 | D100: PN Byggeservice A/S | E100: Svend Svensen | F100: PC | G100: PC I 3.0 GHz | H100: 4996 | I100: 10 | J100: =Salgstabel[[#This Row],[Antal]]*Salgstabel[[#This Row],[Stk. pris]] -> 49960
